[Event "44th Chess Olympiad Open 2022"]
[Site "Chennai"]
[Date "2022.08.07"]
[Round "9.15"]
[White "Gavrilescu, David"]
[Black "Baltag, Iulian"]
[Result "0-1"]
[WhiteElo "2525"]
[BlackElo "2405"]
[Annotator "TA"]
[PlyCount "150"]
[EventDate "2022.??.??"]
[TimeControl "60"]

{[%evp 9,150,28,34,17,27,21,27,33,31,19,29,14,24,-30,-12,-39,0,0,20,-31,2,0,0,
0,0,21,0,-105,-106,-113,-111,-107,-114,-172,-156,-160,-170,-239,-220,-261,-262,
-260,-257,-249,-252,-247,-244,-237,-236,-236,-236,-238,-237,-237,-239,-244,
-243,-241,-243,-240,-183,-186,-185,-177,-157,-202,-141,-177,-158,-312,-306,
-303,-307,-304,-303,-381,-370,-381,-372,-374,-372,-441,-431,-464,-476,-470,
-463,-456,-456,-412,-287,-488,-237,-397,-369,-345,-306,-445,-429,-427,-379,
-339,-267,-268,-287,-290,-256,-243,-209,-227,-232,-370,-354,-392,-396,-358,
-256,-278,-277,-270,-294,-672,-663,-657,-651,-622,-531,-1425,-1375,-1770,-1404,
-1627,-1448,-2327,-2103,-5587,-4228,-6721,-6713,-29978,-29979,-29978,-12363]} 
1. e4 {[%emt 0:00:09]} c5 {[%emt 0:00:09]} 2. Nf3 {[%emt 0:00:14]} Nc6 {
[%emt 0:00:08]} 3. Bb5 {[%emt 0:00:33]} Nf6 {[%emt 0:00:11]} 4. Bxc6 {[%emt 0:
00:00]} dxc6 {[%emt 0:00:06]} 5. d3 {[%emt 0:00:10]} Qc7 {[%emt 0:00:05]} 6. h3
{[%emt 0:01:48] B30: Sicilian: 2...Nc6 3 Bb5, lines without ...g6.} e5 {
[%emt 0:00:08]} 7. O-O {[%emt 0:04:17]} h6 {[%emt 0:00:11]} 8. Nbd2 {[%emt 0:
00:00] White has an edge.} Be6 {[%emt 0:00:06] [#]} 9. Nc4 $146 {[%emt 0:00:39]
} ({Predecessor:} 9. a3 a5 10. Re1 Be7 11. b3 a4 12. Bb2 Nd7 13. b4 cxb4 14.
axb4 b5 15. d4 {0-1 (37) Fichter,F (2251)-Barski,R (2437) Germany 2020}) 9...
Nd7 {[%emt 0:04:12]} 10. a4 {[%emt 0:03:58]} g5 {[%emt 0:03:53]} 11. c3 {
[%emt 0:05:27]} (11. Nh2 $142) 11... O-O-O {[%emt 0:00:46]} 12. Qe2 {[%emt 0:
00:00]} f6 {[%emt 0:01:35]} 13. Be3 {[%emt 0:08:27]} h5 {[%emt 0:01:05]} 14.
Nfd2 {[%emt 0:08:52]} (14. Rfb1 $11) 14... Be7 {[%emt 0:01:46]} 15. a5 {
[%emt 0:08:10]} g4 {[%emt 0:06:19]} 16. h4 {[%emt 0:00:42]} Nb8 {[%emt 0:00:29]
} 17. b4 {[%emt 0:06:02]} Qd7 {[%emt 0:03:29]} 18. Bxc5 {[%emt 0:05:38]} (18.
Nb2 $1 $11 {remains equal.}) 18... Bxc5 $17 {[%emt 0:00:52] White is now going
downhill.} 19. bxc5 {[%emt 0:00:05]} Qxd3 {[%emt 0:00:48]} 20. Qxd3 {[%emt 0:
00:00]} Rxd3 {[%emt 0:00:05]} 21. Rfb1 {[%emt 0:04:06]} (21. Rab1 $17 Kc7 22.
Nd6) 21... Kc7 $1 $19 {[%emt 0:02:51]} 22. Nd6 {[%emt 0:10:47]} Bc8 {[%emt 0:
00:00]} 23. N2c4 {[%emt 0:10:50]} (23. Nxc8 $142 Rxc8 24. Nf1) 23... Na6 {
[%emt 0:00:46]} 24. Nb2 {[%emt 0:08:14]} Rxc3 {[%emt 0:01:14]} 25. Na4 {
[%emt 0:00:05]} Rc2 {[%emt 0:00:16]} (25... Nxc5 26. Nb5+ cxb5 27. Nxc3 $11)
26. Rc1 {[%emt 0:00:21]} Rxc1+ {[%emt 0:02:38]} 27. Rxc1 {[%emt 0:00:02] [#]}
Nxc5 $1 {[%emt 0:03:58]} 28. Nxc8 {[%emt 0:00:04]} Nxa4 {[%emt 0:00:00]} 29.
Nxa7 {[%emt 0:00:04] Endgame KRN-KRN} Ra8 {[%emt 0:04:10]} 30. Nb5+ {[%emt 0:
00:05]} Kd7 {[%emt 0:00:17]} 31. Rd1+ {[%emt 0:00:28]} Ke7 {[%emt 0:00:24]} 32.
Nd6 {[%emt 0:01:06]} Nc5 $1 {[%emt 0:00:26]} (32... Rxa5 33. Nf5+ Ke8 34. Nd6+
Kf8 35. Nxb7 $17) 33. Nf5+ {[%emt 0:01:09]} Kf7 {[%emt 0:00:00]} 34. Rb1 {
[%emt 0:02:20]} Ke6 {[%emt 0:23:53] Inhibits Nd6.} ({Weaker is} 34... Rxa5 35.
Nd6+ Kg6 36. Nxb7 Nxb7 37. Rxb7 $17) (34... Nxe4 35. Rxb7+ Ke6 36. Ng7+ Kd6 37.
Rb4 $17) 35. Ng7+ {[%emt 0:00:01]} Ke7 $1 {[%emt 0:00:11]} 36. Nf5+ {[%emt 0:
00:52]} Kd7 {[%emt 0:01:03]} 37. Rd1+ {[%emt 0:00:41]} Kc7 {[%emt 0:00:28]} 38.
Ng7 {[%emt 0:00:31]} Rh8 {[%emt 0:01:46]} ({Stronger than} 38... Rxa5 39. Ne8+
Kc8 40. Nxf6 $17) ({Not} 38... Nxe4 39. Ne6+ Kb8 40. Rd8+ Ka7 41. Rxa8+ Kxa8
42. Kf1 $17) 39. Re1 $2 {[%emt 0:00:41]} (39. Kf1 $17 {might work better.})
39... Nb3 {[%emt 0:00:30]} 40. Rd1 {[%emt 0:00:27]} Nxa5 {[%emt 0:05:33]} 41.
Ne6+ {[%emt 0:03:43]} Kc8 {[%emt 0:01:02]} 42. Kh2 {[%emt 0:09:23]} b5 {
[%emt 0:08:30]} 43. Kg3 {[%emt 0:06:04]} Nc4 {[%emt 0:00:00]} 44. f4 {[%emt 0:
07:00]} gxf3 {[%emt 0:03:44]} 45. Kxf3 {[%emt 0:00:05]} Rg8 {[%emt 0:00:42]
Inhibits g4.} 46. g3 {[%emt 0:01:34]} Kb7 {[%emt 0:00:54]} 47. Nc5+ {[%emt 0:
00:13]} Kb6 {[%emt 0:00:20]} 48. Nd7+ {[%emt 0:00:04]} Kc7 {[%emt 0:00:07]
White must now prevent ...Rd8.} 49. Nc5 {[%emt 0:00:07]} Rg4 {[%emt 0:07:26]}
50. Ra1 $2 {[%emt 0:04:15]} (50. Kf2 {was necessary.}) 50... Nd6 {[%emt 0:02:
19]} (50... Nd2+ $142 51. Ke3 Nb3 $1 52. Nxb3 Rxg3+ 53. Kf2 Rxb3 54. Ra7+ Kb6)
51. Ra6 $2 {[%emt 0:00:55]} (51. Rd1) 51... Nb7 {[%emt 0:03:09]} 52. Nd3 {
[%emt 0:00:56]} Kd6 {[%emt 0:03:28]} 53. Nb4 {[%emt 0:01:20]} (53. Ra8 $142)
53... Nd8 {[%emt 0:00:23]} 54. Nd5 {[%emt 0:00:00]} Rg7 {[%emt 0:11:26]} 55.
Ne3 {[%emt 0:00:29] Hoping for Nf5+.} Rb7 {[%emt 0:01:23]} 56. g4 {[%emt 0:00:
04]} hxg4+ {[%emt 0:00:50]} 57. Kxg4 {[%emt 0:00:05]} Ke6 {[%emt 0:01:18]} 58.
Ra8 {[%emt 0:00:37]} Nf7 {[%emt 0:00:00]} 59. Ra6 {[%emt 0:00:50] [#]} Rc7 {
[%emt 0:03:33]} 60. Nd5 {[%emt 0:00:16]} (60. h5 $142) 60... f5+ {[%emt 0:00:
32]} 61. Kh3 {[%emt 0:01:31]} Rc8 {[%emt 0:00:00]} 62. Nb4 {[%emt 0:00:03]} Nd8
{[%emt 0:00:11]} 63. exf5+ {[%emt 0:00:31]} Kxf5 {[%emt 0:00:09]} 64. Kg3 {
[%emt 0:00:14]} Ke4 {[%emt 0:02:14] Strongly threatening ...c5.} 65. h5 $2 {
[%emt 0:00:02]} (65. Ra1) 65... c5 {[%emt 0:00:00]} 66. Na2 {[%emt 0:01:32]} b4
{[%emt 0:00:21][%cal Yb5b4,Yb4b3] Inhibits Nc3+.} 67. h6 {[%emt 0:00:37]} Nf7 {
[%emt 0:00:32]} 68. Rf6 {[%emt 0:00:00] [#]} Nxh6 $1 {[%emt 0:02:28] Threatens
to win with ...Rg8+.} 69. Rxh6 {[%emt 0:00:04] KRN-KR} (69. Ra6 Rg8+) 69... b3
{[%emt 0:00:25]} 70. Nc3+ {[%emt 0:00:21]} Kd3 {[%emt 0:00:14]} 71. Na4 {
[%emt 0:01:16]} c4 {[%emt 0:00:16]} 72. Kg4 {[%emt 0:01:00]} c3 {[%emt 0:00:27]
} 73. Rh3+ {[%emt 0:00:00]} Kd4 {[%emt 0:00:17] ( -> ...c2)} 74. Nxc3 {[%emt 0:
00:37]} Rxc3 {[%emt 0:00:08]} 75. Rh8 {[%emt 0:00:03]} Rc4 {[%emt 0:00:38]
Weighted Error Value: White=0.33/Black=0.15 (very precise)} (75... b2 $142 76.
Rb8 Rc2 77. Kf5 Rf2+ 78. Kg4 Rf4+ 79. Kg5 Kc3 80. Kh6 Rb4 81. Rc8+ Kb3 82. Rg8
b1=Q 83. Rg3+ Kc4 84. Kg5 Rb6 85. Rg4+ Kd5 86. Kh4 Qh1+ 87. Kg3 Rb3+ 88. Kf2
Rb2+ 89. Kg3 Qh2+ 90. Kf3 Qf2#) 0-1

[Event "44th Chess Olympiad Open 2022"]
[Site "Chennai"]
[Date "2022.08.07"]
[Round "9.15"]
[White "Macovei, Andrei"]
[Black "Parligras, Mircea-Emilian"]
[Result "1/2-1/2"]
[WhiteElo "2478"]
[BlackElo "2576"]
[Annotator "TA"]
[PlyCount "79"]
[EventDate "2022.??.??"]
[TimeControl "60"]

{[%evp 15,79,2,4,3,2,0,17,3,13,3,2,7,18,13,14,18,11,27,15,22,18,0,17,0,0,0,0,2,
11,8,12,-7,0,0,0,0,0,-16,-16,-50,-50,-50,-16,-47,-16,-50,-50,-51,-51,-51,-51,
-51,-49,-51,-51,-51,-19,-19,-7,-44,-19,-44,-19,-19,-19,-27]} 1. e4 {[%emt 0:00:
00]} e5 {[%emt 0:00:13]} 2. Nf3 {[%emt 0:00:03]} Nc6 {[%emt 0:00:13]} 3. Bc4 {
[%emt 0:00:06]} Bc5 {[%emt 0:00:14]} 4. c3 {[%emt 0:00:02]} Nf6 {[%emt 0:00:15]
} 5. d3 {[%emt 0:00:02]} O-O {[%emt 0:00:38]} 6. O-O {[%emt 0:00:08]} d5 {
[%emt 0:00:21]} 7. exd5 {[%emt 0:00:03]} Nxd5 {[%emt 0:00:10]} 8. Re1 {[%emt 0:
00:00]} Bg4 {[%emt 0:04:55]} 9. Nbd2 {[%emt 0:00:06] C54: Giuoco Piano: 4 c3
Nf6, main lines with 5 d4 and 5 d3.} Nb6 {[%emt 0:01:45]} 10. h3 {[%emt 0:00:
00]} Bh5 {[%emt 0:00:51]} ({Resist} 10... Nxc4 11. Nxc4 Bxf3 12. Qxf3 $14) 11.
Bb3 {[%emt 0:00:04] Nowadays more popular than 11.Bb5.} Qxd3 {[%emt 0:01:08]}
12. Nxe5 {[%emt 0:00:02]} Qf5 {[%emt 0:00:26]} 13. Nef3 $1 {[%emt 0:00:02]} ({
Not} 13. Ndf3 $2 Nxe5 14. Rxe5 Qxe5 15. Nxe5 Bxd1 16. Bxd1 Rfe8 $19) 13... Rad8
{[%emt 0:01:40]} 14. Qe2 {[%emt 0:00:44]} Nd5 {[%emt 0:00:48]} 15. Ne4 {
[%emt 0:04:08]} Bxf3 {[%emt 0:01:14]} 16. Qxf3 {[%emt 0:00:05]} Qxf3 {[%emt 0:
00:00]} 17. gxf3 {[%emt 0:00:03]} Bb6 {[%emt 0:06:06]} 18. Kf1 {[%emt 0:30:27]
[#]} Ne5 $146 {[%emt 0:13:35] [#]} ({Predecessor:} 18... Nde7 19. Bg5 h6 20.
Bxe7 Nxe7 21. Nf6+ gxf6 22. Rxe7 Rd2 23. Re2 Rfd8 24. Rae1 Kf8 25. Rxd2 Rxd2 {
½-½ (31) Vachier Lagrave,M (2774)-Aronian,L (2758) Khanty-Mansiysk 2019}) 19.
Nc5 $1 {[%emt 0:32:52]} Bxc5 {[%emt 0:13:16]} (19... Nxf3 20. Nxb7) 20. Rxe5 {
[%emt 0:00:04]} c6 {[%emt 0:00:04]} 21. Bd2 {[%emt 0:04:27]} Bd6 {[%emt 0:00:
00]} 22. Re4 {[%emt 0:03:26]} Nf6 {[%emt 0:02:20]} 23. Rd4 {[%emt 0:00:25]} Be5
{[%emt 0:07:05]} 24. Rxd8 {[%emt 0:00:23]} Rxd8 {[%emt 0:00:05]} 25. Bg5 {
[%emt 0:03:49]} h6 {[%emt 0:04:07]} 26. Bxf6 {[%emt 0:00:29]} Bxf6 {[%emt 0:00:
00]} 27. Rd1 {[%emt 0:00:01]} Rxd1+ {[%emt 0:00:10]} 28. Bxd1 $15 {[%emt 0:00:
00] Endgame KB-KB} Kf8 {[%emt 0:00:12]} 29. Ke2 {[%emt 0:00:10]} Ke7 {[%emt 0:
00:05]} 30. Bb3 {[%emt 0:00:15]} Bg5 {[%emt 0:00:10]} 31. Kd3 {[%emt 0:00:20]}
Bc1 {[%emt 0:00:05]} 32. Kc2 {[%emt 0:00:05]} Bf4 {[%emt 0:00:00]} 33. a4 {
[%emt 0:00:40]} a5 {[%emt 0:00:17]} 34. Bc4 {[%emt 0:00:09]} Bc7 {[%emt 0:00:
24]} 35. Kd3 {[%emt 0:00:12]} Bb6 {[%emt 0:00:06]} 36. Ke2 {[%emt 0:00:00]} Bc5
{[%emt 0:00:17]} 37. Kf1 {[%emt 0:00:34]} g5 {[%emt 0:00:51]} 38. Ke2 {[%emt 0:
00:36]} f6 {[%emt 0:00:08]} 39. f4 {[%emt 0:01:09]} gxf4 {[%emt 0:00:00]} 40.
f3 {[%emt 0:00:03] Weighted Error Value: White=0.09 (flawless) / Black=0.06 
(flawless)} 1/2-1/2

[Event "44th Chess Olympiad Open 2022"]
[Site "Chennai"]
[Date "2022.08.07"]
[Round "9.15"]
[White "Ceres, Dragos"]
[Black "Jianu, Vlad-Cristian"]
[Result "1/2-1/2"]
[WhiteElo "2378"]
[BlackElo "2511"]
[Annotator "TA"]
[PlyCount "75"]
[EventDate "2022.??.??"]
[TimeControl "60"]

{[%evp 10,75,22,7,23,18,28,8,8,8,8,6,5,12,8,5,6,0,22,0,0,6,3,0,0,0,4,3,17,17,
19,16,17,12,18,8,13,13,18,12,22,0,37,31,33,39,44,10,71,6,6,8,10,7,9,0,18,0,53,
39,83,83,92,9,19,0,80,0]} 1. e4 {[%emt 0:00:03]} c6 {[%emt 0:00:13]} 2. Nc3 {
[%emt 0:00:16]} d5 {[%emt 0:00:07]} 3. Nf3 {[%emt 0:00:06]} Bg4 {[%emt 0:00:42]
} 4. h3 {[%emt 0:00:08]} Bxf3 {[%emt 0:00:07]} 5. Qxf3 {[%emt 0:00:05]} e6 {
[%emt 0:00:04]} 6. Be2 {[%emt 0:01:02]} Bc5 {[%emt 0:01:45][%cal Yf8c5,Yc5d4,
Yd4e5] B11: Caro-Kann: Two Knights Variation.} 7. O-O {[%emt 0:00:56]} Nd7 {
[%emt 0:00:03]} 8. Qg3 {[%emt 0:00:36]} Bd4 {[%emt 0:06:45] The position is
equal.} 9. exd5 {[%emt 0:00:07]} exd5 {[%emt 0:01:34]} 10. Bd1 {[%emt 0:00:00]}
Ne7 {[%emt 0:00:14]} 11. Ne2 {[%emt 0:00:13]} Be5 {[%emt 0:00:21]} 12. Qf3 {
[%emt 0:00:14]} d4 {[%emt 0:05:22]} 13. c3 {[%emt 0:00:30]} Nc5 {[%emt 0:00:00]
[#]} 14. cxd4 $146 {[%emt 0:00:11]} ({Predecessor:} 14. b4 Ne6 15. Bb3 O-O {
½-½ (15) Morgunov,M (2376)-Kraus,T (2488) Ceske Budejovice 2022}) 14... Bxd4
{[%emt 0:00:05]} 15. Nxd4 {[%emt 0:00:07]} Qxd4 {[%emt 0:00:03]} 16. Qe3 {
[%emt 0:02:51]} Rd8 {[%emt 0:10:49]} 17. Re1 {[%emt 0:07:29][%csl Ge1][%cal
Re3e7] [#]} Qxe3 {[%emt 0:14:12]} 18. dxe3 {[%emt 0:03:08]} Ng6 {[%emt 0:08:23]
} 19. Bc2 {[%emt 0:12:34]} Nd3 {[%emt 0:01:58]} 20. Rd1 {[%emt 0:01:04]} Nxc1 {
[%emt 0:00:06]} 21. Raxc1 {[%emt 0:00:33]} Ke7 {[%emt 0:05:33]} 22. Kf1 {
[%emt 0:04:26]} Ne5 {[%emt 0:02:49]} 23. Ke2 {[%emt 0:00:59]} g6 {[%emt 0:00:
00]} 24. Bb3 {[%emt 0:02:18]} f6 {[%emt 0:07:12]} 25. h4 {[%emt 0:09:45][%cal
Yh4h5]} h6 {[%emt 0:05:05]} 26. Rd4 {[%emt 0:07:32]} Rxd4 {[%emt 0:06:53]} 27.
exd4 $14 {[%emt 0:00:09] Endgame KRB-KRN} Nd7 {[%emt 0:00:22]} 28. Kd2 {
[%emt 0:09:25]} Re8 {[%emt 0:01:45] [#]} (28... Nb6 $11 {remains equal.}) 29.
Rc3 {[%emt 0:01:05]} (29. h5 $1 $16) 29... Kd6 $11 {[%emt 0:08:43]} 30. Bc2 {
[%emt 0:07:54] Against Re4} g5 {[%emt 0:00:58]} 31. Rf3 {[%emt 0:03:29]} Rg8 {
[%emt 0:03:11]} 32. h5 {[%emt 0:02:37]} Re8 {[%emt 0:03:18]} 33. Rf5 {[%emt 0:
00:00]} b6 {[%emt 0:00:41]} (33... Rf8 $11) 34. b4 $14 {[%emt 0:04:18]} Re6 {
[%emt 0:00:28]} 35. Rf3 {[%emt 0:01:20] Strongly threatening Bf5.} Re7 {
[%emt 0:00:32]} 36. Ra3 {[%emt 0:03:21]} (36. Bf5 $16) 36... Nf8 $11 {[%emt 0:
00:00]} 37. Rf3 {[%emt 0:00:08]} (37. Bf5 $11) 37... Nd7 $16 {[%emt 0:00:08]}
38. Ra3 {[%emt 0:00:16] Weighted Error Value: White=0.14 (very precise) /
Black=0.12 (very precise)} (38. Bf5 $16) 1/2-1/2

[Event "44th Chess Olympiad Open 2022"]
[Site "Chennai"]
[Date "2022.08.07"]
[Round "9.16"]
[White "Nabaty, Tamir"]
[Black "Henderson de La Fuente, Lance"]
[Result "1/2-1/2"]
[WhiteElo "2631"]
[BlackElo "2490"]
[Annotator "TA"]
[PlyCount "188"]
[EventDate "2022.??.??"]
[TimeControl "60"]

{[%evp 17,188,-36,-11,-36,-38,-35,-26,-29,-32,-35,-27,-32,-24,-44,-29,-23,-18,
-21,-18,-22,0,0,0,0,0,0,0,0,8,2,7,10,5,5,4,6,13,0,12,11,10,0,0,0,19,0,15,12,34,
36,29,43,50,39,49,45,31,31,51,52,55,55,49,49,60,56,37,44,42,16,22,17,59,56,127,
127,127,122,127,127,141,88,114,113,236,188,153,8,8,8,8,8,8,8,8,8,129,129,129,
129,123,8,8,8,8,8,8,8,8,8,71,64,64,64,71,8,8,8,8,8,8,8,8,0,8,0,8,8,8,8,8,8,8,8,
8,8,8,0,8,8,8,0,8,0,8,0,8,8,8,8,8,8,8,8,78,0,86,8,8,8,8,8,8,8,8,0,0,0,0,0,0,0,
0]} 1. d4 {[%emt 0:00:03]} Nf6 {[%emt 0:00:37]} 2. Nf3 {[%emt 0:00:10]} b6 {
[%emt 0:00:37]} 3. Bg5 {[%emt 0:02:55]} Bb7 {[%emt 0:00:59]} 4. Nbd2 {[%emt 0:
00:00]} g6 {[%emt 0:02:05]} 5. Bxf6 {[%emt 0:00:46]} exf6 {[%emt 0:00:08]} 6.
e4 {[%emt 0:00:07]} Bg7 {[%emt 0:01:18]} 7. Bd3 {[%emt 0:00:11]} O-O {[%emt 0:
00:00]} 8. O-O {[%emt 0:01:09]} d5 {[%emt 0:04:48]} 9. c3 {[%emt 0:00:57]} Nd7
{[%emt 0:02:08]} 10. Qa4 {[%emt 0:04:03]} c5 {[%emt 0:05:01]} 11. exd5 {
[%emt 0:03:56]} cxd4 {[%emt 0:07:14]} ({Don't do} 11... Bxd5 12. Bb5 Nb8 13.
dxc5 $14) 12. cxd4 {[%emt 0:03:07]} a6 {[%emt 0:05:30]} 13. d6 {[%emt 0:04:07]}
b5 {[%emt 0:06:35]} 14. Qa3 {[%emt 0:06:55]} Nb6 {[%emt 0:01:26]} 15. Rfe1 {
[%emt 0:14:22]} Nc8 {[%emt 0:04:33]} 16. Be4 {[%emt 0:02:47]} Nxd6 {[%emt 0:00:
00]} 17. Bxb7 {[%emt 0:00:06]} Nxb7 {[%emt 0:00:05]} 18. Rac1 {[%emt 0:03:12]}
Re8 {[%emt 0:02:32]} 19. Rxe8+ {[%emt 0:04:55]} Qxe8 {[%emt 0:00:20]} 20. Rc7 {
[%emt 0:00:19]} Bf8 {[%emt 0:00:38]} 21. Qc3 {[%emt 0:00:29]} Nd6 {[%emt 0:00:
00]} 22. Qc6 {[%emt 0:00:38]} Qxc6 {[%emt 0:05:16]} 23. Rxc6 {[%emt 0:00:02]}
Rc8 {[%emt 0:07:22]} 24. Rxc8 {[%emt 0:03:54]} Nxc8 {[%emt 0:00:02]} 25. Ne4 {
[%emt 0:00:11]} Be7 {[%emt 0:01:03]} 26. Kf1 {[%emt 0:08:45]} Kf8 {[%emt 0:00:
00]} 27. Ke2 {[%emt 0:00:07]} Ke8 {[%emt 0:00:42]} 28. Nc5 {[%emt 0:02:56]} a5
$1 {[%emt 0:01:56]} 29. Kd3 {[%emt 0:03:12]} Nb6 {[%emt 0:00:44]} 30. Nd2 {
[%emt 0:04:32]} Nd5 {[%emt 0:04:49]} 31. Ke4 {[%emt 0:04:13]} Nc7 {[%emt 0:00:
00]} 32. g4 {[%emt 0:03:34]} Bxc5 {[%emt 0:01:25]} 33. dxc5 {[%emt 0:00:02]}
Kd7 {[%emt 0:00:47]} 34. Nb3 {[%emt 0:00:51]} Ne6 {[%emt 0:11:03]} 35. c6+ {
[%emt 0:00:14]} Kxc6 {[%emt 0:00:17]} 36. Nxa5+ {[%emt 0:00:11]} Kd6 {[%emt 0:
00:00]} 37. Nb3 {[%emt 0:01:03]} Ng5+ {[%emt 0:00:39]} 38. Ke3 {[%emt 0:00:27]}
Ne6 {[%emt 0:01:55]} 39. Nd4 {[%emt 0:04:05]} Nc7 {[%emt 0:00:36]} 40. Ke4 {
[%emt 0:01:34]} Kc5 {[%emt 0:00:42]} 41. Nb3+ {[%emt 0:38:11]} Kd6 {[%emt 0:00:
00]} 42. Nc1 {[%emt 0:01:49]} Kc5 {[%emt 0:01:47]} 43. Nd3+ {[%emt 0:02:29]}
Kc4 {[%emt 0:02:02]} 44. Nf4 {[%emt 0:01:13]} Kc5 {[%emt 0:00:32]} 45. b3 {
[%emt 0:03:12]} Kd6 {[%emt 0:00:00]} (45... h6 $14) 46. Kd4 $1 $16 {[%emt 0:00:
00]} Kc6 {[%emt 0:00:00]} 47. a4 {[%emt 0:00:00]} bxa4 {[%emt 0:00:00]} 48.
bxa4 {[%emt 0:00:00]} Kd6 {[%emt 0:00:00]} 49. h3 {[%emt 0:00:00]} ({Better is
} 49. f3) 49... Kc6 {[%emt 0:00:00]} 50. h4 {[%emt 0:00:00]} g5 {[%emt 0:00:00]
} (50... Kd6 $16) 51. hxg5 $18 {[%emt 0:00:00]} fxg5 {[%emt 0:00:00]} 52. Nh5 {
[%emt 0:00:00]} (52. Nd3 $16 {Strongly threatening Ne5+.} Kd6 53. a5) 52...
Ne6+ $11 {[%emt 0:00:00]} 53. Ke3 {[%emt 0:00:00]} Nc5 {[%emt 0:00:00]} 54. a5
{[%emt 0:00:00]} Nd7 {[%emt 0:00:00]} 55. Ke4 {[%emt 0:00:00]} Kb5 {[%emt 0:00:
00]} 56. Kf5 {[%emt 0:00:00]} Kxa5 {[%emt 0:00:00]} (56... h6 $11) 57. Nf6 $16
{[%emt 0:00:00]} Nf8 {[%emt 0:00:00]} (57... Nxf6 $2 58. Kxf6 h6 59. Kxf7 $18)
58. Kxg5 {[%emt 0:00:00]} Kb5 {[%emt 0:00:00] [#]} 59. Kh6 {[%emt 0:00:27]} (
59. f4 $1 $16 {[%cal Rf4f5] aiming for f5.} Ng6 60. f5 (60. Nxh7 Kc6 $18))
59... Kc4 $11 {[%emt 0:00:00]} 60. Kg7 {[%emt 0:06:07]} ({Much less strong is} 
60. Nxh7 Ng6 $14) 60... Ng6 {[%emt 0:00:00]} 61. Kxf7 {[%emt 0:00:41]} Kd3 $1 {
[%emt 0:02:10]} 62. g5 {[%emt 0:00:30]} Ke2 $1 {[%emt 0:00:30]} 63. Nxh7 {
[%emt 0:00:23]} Nf4 {[%emt 0:02:56]} (63... Nh4 $1 $11 {keeps the balance.})
64. Nf8 $16 {[%emt 0:00:51]} Kxf2 {[%emt 0:00:25]} 65. Ne6 {[%emt 0:00:08]} Nh5
{[%emt 0:00:34]} 66. g6 {[%emt 0:00:21]} (66. Kg6 $16 Ng3 67. Kf7) 66... Kf3 $1
$11 {[%emt 0:00:26]} 67. Nc7 {[%emt 0:01:30]} Kg4 {[%emt 0:00:32]} 68. Ne8 {
[%emt 0:00:24]} Kg5 {[%emt 0:00:18]} 69. Nd6 {[%emt 0:00:33]} Kf4 $1 {[%emt 0:
00:00]} 70. Ne8 {[%emt 0:00:39]} Kg5 {[%emt 0:00:02]} 71. Nc7 {[%emt 0:00:12]}
Kf5 {[%emt 0:01:01]} 72. Ne6 {[%emt 0:00:33]} Ke5 {[%emt 0:00:00]} 73. Nc5 {
[%emt 0:00:43]} Kf5 {[%emt 0:00:00]} 74. Nb3 {[%emt 0:00:25]} Ke5 {[%emt 0:00:
00]} 75. Nc1 {[%emt 0:00:30]} Kf5 {[%emt 0:00:30]} 76. Ne2 {[%emt 0:00:30]} Ke5
{[%emt 0:00:44]} 77. Nc1 {[%emt 0:00:28]} Kf5 {[%emt 0:00:12]} 78. Nd3 {
[%emt 0:00:24]} Ke4 {[%emt 0:00:27]} 79. Nc5+ {[%emt 0:00:25]} Kf5 {[%emt 0:00:
00]} 80. Ne6 {[%emt 0:00:49]} Ke5 {[%emt 0:00:14]} 81. Nc7 {[%emt 0:00:33]} Kf5
{[%emt 0:00:10]} 82. Na6 {[%emt 0:00:34]} Kg5 {[%emt 0:00:11]} 83. Nb4 {
[%emt 0:00:22]} Kf5 {[%emt 0:00:11]} 84. Nd5 {[%emt 0:00:36]} Ke5 {[%emt 0:00:
00]} 85. Nc3 {[%emt 0:00:16]} Kf5 {[%emt 0:00:12]} (85... Kf4 $11) 86. Ne2 {
[%emt 0:00:12]} Ke5 {[%emt 0:00:07] [#]} 87. Kg8 {[%emt 0:00:33]} (87. Ng1 $1
$16) 87... Kf5 $11 {[%emt 0:00:59]} 88. Kh7 {[%emt 0:00:12]} Nf6+ {[%emt 0:00:
00]} 89. Kg7 {[%emt 0:00:08]} Kg5 {[%emt 0:01:15]} 90. Kf7 {[%emt 0:01:10]} Ne8
$1 {[%emt 0:01:17]} 91. Nf4 {[%emt 0:00:45]} Nd6+ {[%emt 0:00:06]} 92. Kf8 {
[%emt 0:00:37]} Nf5 {[%emt 0:00:14]} 93. g7 {[%emt 0:00:05]} Nxg7 $1 {[%emt 0:
00:00]} 94. Kxg7 {[%emt 0:00:04]} Kxf4 {[%emt 0:00:05]} 1/2-1/2